bitfinex/quotes_ETHUSD_20250322
["timestamp","ask_amount","ask_price","bid_price","bid_amount"]
[1742675857242,3.0,2004.9,2004.7,26.372]
[1742675857543,0.32677725,2004.8,2004.7,26.372]
[1742675857773,3.0,2004.9,2004.7,26.372]
[1742675857978,0.32677725,2004.8,2004.7,31.36016]
[1742675858398,3.0,2004.9,2004.7,36.34828]
[1742675858695,0.32677725,2004.8,2004.7,31.36012]
[1742675858995,3.0,2004.9,2004.7,31.36012]
[1742675859298,0.32677725,2004.8,2004.7,32.14282]
[1742675859595,3.0,2005.0,2004.7,32.14282]
[1742675859793,0.32677725,2004.8,2004.7,32.14282]
[1742675860092,3.0,2005.0,2004.8,4.9879]
[1742675860269,3.0,2005.0,2004.7,32.14282]
[1742675860692,3.0,2005.1,2004.8,4.98793]
[1742675860999,7.98728,2005.1,2004.8,4.98793]
[1742675865292,3.0,2005.1,2004.8,4.98793]
[1742675865489,3.0,2005.1,2004.8,4.98789]
[1742675865783,7.98729,2005.1,2004.7,0.7827]
[1742675865985,7.97729,2005.1,2004.7,5.77091]
[1742675867599,0.3269399,2005.0,2004.7,5.77091]
[1742675868602,0.3269399,2005.0,2004.7,10.75902]
[1742675868899,0.3269399,2005.0,2004.7,5.77081]
[1742675870299,0.3269399,2005.0,2004.9,4.98777]
[1742675874510,0.3269399,2005.0,2004.8,4.988]
[1742675877508,0.3269399,2005.0,2004.9,4.98777]
[1742675877676,0.3269399,2005.0,2004.8,4.988]
[1742675880503,0.3269399,2005.0,2004.8,9.97588]
[1742675880676,0.3269399,2005.0,2004.8,4.98788]
[1742675883405,0.3269399,2005.0,2004.8,9.97582]
[1742675884311,0.3269399,2005.0,2004.8,4.98788]
[1742675884611,0.3269399,2005.0,2004.8,9.97578]
[1742675884816,0.3269399,2005.0,2004.8,4.98788]
[1742675884974,7.84078716,2005.0,2004.9,4.615]
[1742675885310,2.85314716,2005.0,2004.9,4.615]
[1742675888605,0.3269399,2005.0,2004.9,4.615]
[1742675888905,0.3269399,2005.0,2004.9,10.39927]
[1742675889440,3.0,2005.2,2005.0,4.98739]
[1742675889918,3.0,2005.2,2005.0,4.98737]
[1742675890414,3.0,2005.2,2005.0,4.98744]
[1742675891608,5.52620726,2005.2,2005.0,4.98744]
[1742675897331,5.52620726,2005.2,2005.0,4.98745]
[1742675897635,0.32753106,2005.1,2005.0,4.98745]
[1742675897927,5.52620726,2005.2,2005.0,4.98745]
[1742675898119,0.32753106,2005.1,2005.0,4.98745]
[1742675898314,5.52620726,2005.2,2005.0,4.98745]
[1742675898628,0.32753106,2005.1,2005.0,4.98745]
[1742675898926,2.52620726,2005.2,2005.0,4.98745]
[1742675899127,0.32753106,2005.1,2005.0,4.98745]
[1742675899327,2.52620726,2005.2,2005.0,4.98745]
[1742675899631,0.32775978,2005.1,2005.0,4.98745]
[1742675899831,2.52620726,2005.2,2005.0,4.98745]
[1742675900033,0.32775978,2005.1,2005.0,4.98745]
[1742675900238,2.52620726,2005.2,2005.0,4.98745]
[1742675900533,0.32775978,2005.1,2005.0,4.98745]
[1742675900729,2.52620726,2005.2,2005.0,4.98745]
[1742675901033,0.32775978,2005.1,2005.0,4.98745]
[1742675901400,2.52620726,2005.2,2005.0,4.98745]
[1742675901634,0.32775978,2005.1,2005.0,4.98745]
[1742675901795,2.52620726,2005.2,2005.0,4.98745]
[1742675902127,0.32775978,2005.1,2005.0,4.98745]
[1742675902533,2.52620726,2005.3,2005.0,9.97481]
[1742675902838,0.32785607,2005.2,2005.0,9.97481]
[1742675903936,0.32785607,2005.2,2004.9,10.39919]
[1742675904235,0.32785607,2005.2,2005.0,4.98741]
[1742675904703,2.85406333,2005.2,2005.0,4.98741]
[1742675907143,7.84111333,2005.2,2004.9,10.39919]
[1742675907315,2.85406333,2005.2,2004.9,15.38688]
[1742675907615,2.85406333,2005.2,2005.0,4.98751]
[1742675910805,4.21273766,2005.2,2005.0,4.98751]
[1742675911161,3.0,2005.0,2004.8,4.611]
[1742675911361,6.28550726,2004.9,2004.7,26.369]
[1742675911651,2.52620726,2004.8,2004.7,30.98]
[1742675911812,2.85325816,2004.8,2004.7,26.369]
[1742675912021,9.00131498,2004.8,2004.7,26.369]
[1742675913135,8.67426408,2004.8,2004.7,26.369]
[1742675913338,9.00139998,2004.8,2004.7,26.369]
[1742675915355,12.00139998,2004.8,2004.4,4.98884]
[1742675915537,2.52620726,2004.5,2004.2,4.98929]
[1742675915708,2.52620726,2004.6,2004.3,4.612]
[1742675915909,0.32663006,2004.4,2004.3,9.60123]
[1742675916132,2.52620726,2004.6,2004.3,14.59046]
[1742675916445,8.27390726,2004.7,2004.4,4.98901]
[1742675916736,0.32771866,2004.5,2004.4,4.98901]
[1742675916946,8.27390726,2004.7,2004.4,4.98901]
[1742675917108,0.32771866,2004.5,2004.4,4.98901]
[1742675917309,8.27390726,2004.7,2004.4,4.98901]
[1742675917744,3.28550726,2004.7,2004.4,9.97788]
[1742675918039,0.32784507,2004.6,2004.4,9.97788]
[1742675918250,2.52620726,2004.7,2004.4,9.97788]
[1742675918457,0.32771866,2004.5,2004.4,9.97788]
[1742675918655,2.52620726,2004.7,2004.4,4.98887]
[1742675918854,0.32771866,2004.5,2004.4,4.98887]
[1742675919057,2.52620726,2004.7,2004.4,4.98887]
[1742675919261,0.32771866,2004.5,2004.4,4.98887]
[1742675919434,2.52620726,2004.7,2004.4,4.98887]
[1742675919945,0.32784507,2004.6,2004.4,4.98887]
[1742675920134,4.61163999,2004.7,2004.4,4.98887]
[1742675920334,0.32784507,2004.6,2004.4,4.98887]
[1742675920537,9.60002999,2004.7,2004.3,5.4222]
[1742675920723,2.85405233,2004.6,2004.3,5.4222]
[1742675921227,2.85405233,2004.6,2004.3,10.41138]
[1742675922428,0.32784507,2004.6,2004.3,10.41138]
[1742675922629,8.27389726,2004.7,2004.3,10.41138]
[1742675922828,0.32671216,2004.5,2004.3,10.41138]
[1742675923053,8.27389726,2004.7,2004.3,10.41138]
[1742675923225,0.32658573,2004.4,2004.3,10.41138]
[1742675923425,8.27389726,2004.7,2004.3,10.41138]
[1742675923639,0.32658573,2004.4,2004.3,10.41138]
[1742675923837,8.27389726,2004.7,2004.3,10.41138]
[1742675924049,0.32658573,2004.4,2004.3,10.41138]
[1742675924226,8.27389726,2004.7,2004.3,10.41138]
[1742675924425,0.32683857,2004.6,2004.3,10.41138]
[1742675924749,0.32671216,2004.5,2004.3,10.41138]
[1742675925059,8.27389726,2004.7,2004.3,10.41138]
[1742675925260,0.32683857,2004.6,2004.3,10.41138]
[1742675925558,0.32671216,2004.5,2004.3,10.41138]
[1742675925761,8.27389726,2004.7,2004.3,10.41138]
[1742675925762,8.27389726,2004.7,2004.3,15.40055]
[1742675925964,0.32683857,2004.6,2004.3,15.40055]
[1742675926175,8.27389726,2004.7,2004.3,15.40055]
[1742675926342,0.32683857,2004.6,2004.3,15.40055]
[1742675926668,8.27389726,2004.7,2004.3,15.40055]
[1742675926869,0.32683857,2004.6,2004.3,15.40055]
[1742675927053,8.27389726,2004.7,2004.3,15.40055]
[1742675927251,0.32626655,2004.6,2004.3,15.40055]
[1742675927562,0.3261401,2004.5,2004.3,15.40055]
[1742675927769,8.27389726,2004.7,2004.3,15.40055]
[1742675928063,0.32626655,2004.6,2004.3,15.40055]
[1742675928252,8.27389726,2004.7,2004.3,15.40055]
[1742675928863,0.32626655,2004.6,2004.3,15.40055]
[1742675929062,8.27389726,2004.7,2004.3,15.40055]
[1742675929227,0.3261401,2004.5,2004.3,15.40055]
[1742675929428,8.27389726,2004.7,2004.4,4.98901]
[1742675931265,8.27389726,2004.7,2004.3,10.41137]
[1742675931467,2.52620726,2004.6,2004.3,10.41137]
[1742675932463,2.52620726,2004.6,2004.3,9.60117]
[1742675932674,2.52620726,2004.4,2004.2,0.7684]
[1742675932835,2.52620726,2004.3,2004.1,31.35967]
[1742675933159,2.52620726,2004.3,2004.2,4.612]
[1742675933379,2.52620726,2004.4,2004.2,4.612]
[1742675933579,2.52620726,2004.3,2004.2,4.612]
[1742675933763,7.51525726,2004.4,2004.2,4.612]
[1742675934086,5.52620726,2004.5,2004.2,9.60151]
[1742675936188,5.52620726,2004.5,2004.2,4.612]
[1742675936391,10.51506726,2004.5,2004.2,4.612]
[1742675936790,2.52620726,2004.4,2004.2,4.612]
[1742675937658,10.51510726,2004.5,2004.2,4.612]
[1742675937978,2.52620726,2004.4,2004.2,4.612]
[1742675941651,7.51523726,2004.4,2004.2,4.612]
[1742675941855,2.52620726,2004.3,2004.2,4.612]
[1742675942114,2.52620726,2004.3,2004.0,5.7584]
[1742675942115,4.98958,2004.2,2003.9,26.377]
[1742675942392,7.51621726,2004.0,2003.9,30.99]
[1742675942765,7.8400364,2004.0,2003.9,30.99]
[1742675943351,10.8400364,2004.0,2003.9,30.99]
[1742675943552,12.49894804,2004.0,2003.9,30.99]
[1742675945580,7.50893804,2004.0,2003.9,30.99]
[1742675945752,5.8500264,2004.0,2003.9,30.99]
[1742675946799,5.8500264,2004.0,2003.9,26.377]
[1742675947005,10.8400364,2004.0,2003.9,26.377]
[1742675950325,7.99056,2003.8,2003.7,4.613]
[1742675950622,10.8383878,2003.8,2003.7,4.613]
[1742675952891,12.74981331,2003.8,2003.7,4.613]
[1742675959598,7.75925331,2003.8,2003.7,4.613]
[1742675959800,5.8478278,2003.8,2003.7,4.613]
[1742675961204,10.8383378,2003.8,2003.7,4.613]
[1742675966599,3.0,2003.7,2003.6,0.99502934]
[1742675966953,10.83853468,2003.7,2003.4,0.793]
[1742675967104,2.52620726,2003.6,2003.5,4.614]
[1742675967305,2.84745814,2003.6,2003.5,4.614]
[1742675968656,2.84745814,2003.6,2003.4,1.81603451]
[1742675968657,7.83846814,2003.6,2003.4,1.81603451]
[1742675968855,2.52620726,2003.5,2003.2,27.1957]
[1742675969070,2.52620726,2003.3,2003.2,27.1957]
[1742675969531,2.52620726,2003.3,2003.2,26.386]
[1742675969854,2.84707843,2003.3,2003.2,26.386]
[1742675970825,0.32087117,2003.3,2003.2,26.386]
[1742675971510,0.32087117,2003.3,2003.2,27.1957]
[1742675971713,0.32087117,2003.3,2003.2,32.18771]
[1742675972075,2.52620726,2003.5,2003.3,4.99168]
[1742675972754,0.32060848,2003.4,2003.3,4.99168]
[1742675973575,0.32060848,2003.4,2003.2,32.18771]
[1742675974068,2.84681574,2003.4,2003.2,27.1957]
[1742675974253,2.84681574,2003.4,2003.2,26.386]
[1742675974563,2.52620726,2003.3,2003.2,26.386]
[1742675974966,2.84668916,2003.3,2003.2,26.386]
[1742675977866,2.84668916,2003.3,2003.1,4.99223]
[1742675982769,0.3204819,2003.3,2003.1,4.99208]
[1742675983066,0.3204819,2003.3,2003.1,4.9921]
[1742675983665,0.3204819,2003.3,2003.2,4.99201]
[1742675985233,0.3204819,2003.3,2003.1,4.9921]
[1742675996691,2.52620726,2003.5,2003.2,4.99201]
[1742675996921,0.3196044,2003.4,2003.1,4.9921]
[1742675997531,0.3196044,2003.4,2003.2,4.99193]
[1742675997727,0.3196044,2003.4,2003.1,9.98424]
[1742675998018,0.3196044,2003.4,2003.1,4.9921]
[1742675998221,0.3196044,2003.4,2003.3,4.99176]
[1742675998588,3.0,2003.5,2003.3,9.98352]
[1742675998784,3.0,2003.5,2003.4,4.99151]
[1742675999037,2.52620726,2003.7,2003.5,0.7681]
[1742675999331,4.99043,2003.9,2003.5,0.7681]
[1742675999532,8.34443099,2003.8,2003.5,0.7681]
[1742676000119,8.34443099,2003.8,2003.5,5.75934]
[1742676000320,3.35380099,2003.8,2003.5,5.75934]
[1742676001904,8.34434099,2003.8,2003.5,5.75934]
[1742676002726,0.31966348,2003.7,2003.5,5.75934]
[1742676003122,0.31966348,2003.7,2003.5,0.7681]
[1742676003329,3.0,2003.6,2003.4,5.3831]
[1742676003505,0.32002878,2003.5,2003.4,5.3831]
[1742676003917,0.32002878,2003.5,2003.4,4.615]
[1742676007139,0.32002878,2003.5,2003.4,10.37461]
[1742676007346,7.51624726,2004.0,2003.6,4.99092]
[1742676007502,3.32005772,2003.9,2003.6,4.99089]
[1742676007700,3.32005772,2003.9,2003.7,0.7681]
[1742676008209,0.32005772,2003.9,2003.8,5.75861]
[1742676008439,0.32005772,2003.9,2003.8,0.7681]
[1742676008639,2.52620726,2004.0,2003.8,0.7681]
[1742676008845,0.32005772,2003.9,2003.7,5.75871]
[1742676013253,0.32005772,2003.9,2003.8,4.99051]
[1742676013758,0.32005772,2003.9,2003.7,5.75882]
[1742676021446,0.32005772,2003.9,2003.7,10.74942]
[1742676022264,0.32005772,2003.9,2003.7,5.7587]
[1742676024373,0.32005772,2003.9,2003.7,10.74929]
[1742676024535,0.32005772,2003.9,2003.8,4.99051]
[1742676024940,3.0,2004.1,2003.8,4.99051]
[1742676025151,0.32050484,2004.0,2003.8,4.99051]
[1742676026465,0.32050484,2004.0,2003.8,4.614]
[1742676026764,0.32050484,2004.0,2003.6,31.37695]
[1742676026765,4.99029,2003.9,2003.6,31.37695]
[1742676026968,0.32025176,2003.8,2003.7,4.614]
[1742676027266,10.45788496,2004.0,2003.7,4.614]
[1742676027866,0.32040122,2003.9,2003.8,4.99051]
[1742676028466,8.74912,2004.1,2003.7,10.4047]
[1742676028766,10.54451032,2004.1,2003.7,10.4047]
[1742676028967,0.32052776,2004.0,2003.7,10.4047]
[1742676031172,2.84970329,2004.0,2003.7,10.4047]
[1742676031379,2.84970329,2004.0,2003.7,9.6047]
[1742676031380,2.52917553,2003.9,2003.7,9.6047]
[1742676031672,0.44919673,2003.8,2003.7,9.6047]
[1742676033946,0.44919673,2003.8,2003.7,10.4047]
[1742676034146,2.52917553,2004.0,2003.7,10.4047]
[1742676034365,0.44931684,2003.9,2003.7,10.4047]
[1742676036453,2.97849237,2003.9,2003.7,10.4047]
[1742676036657,2.52917553,2003.8,2003.6,9.60399]
[1742676036973,2.97825214,2003.7,2003.6,4.99099]
[1742676037155,2.97825214,2003.7,2003.5,40.98038]
[1742676037351,2.97825214,2003.7,2003.5,35.98915]
[1742676038280,0.44907661,2003.7,2003.5,40.98024]
[1742676038579,2.97825214,2003.7,2003.5,40.98024]
[1742676040880,2.97825214,2003.7,2003.5,14.59524]
[1742676048285,2.97825214,2003.7,2003.6,4.99101]
[1742676048286,0.44907661,2003.7,2003.6,4.99101]
[1742676053274,2.52917553,2003.8,2003.6,4.99101]
[1742676053474,0.44882472,2003.7,2003.6,4.99101]
[1742676053675,0.44882472,2003.7,2003.6,4.94101]
[1742676054735,0.44882472,2003.7,2003.5,9.60409]
[1742676055067,2.52917553,2003.8,2003.5,9.60409]
[1742676055261,0.44870459,2003.6,2003.5,9.60409]
[1742676055516,2.52917553,2003.8,2003.5,9.60409]
[1742676055691,0.44870459,2003.6,2003.5,9.60409]
[1742676056168,2.52917553,2003.8,2003.5,9.60409]
[1742676056365,0.44882472,2003.7,2003.5,9.60409]
[1742676057094,0.44882472,2003.7,2003.5,14.59523]
[1742676057463,0.44882472,2003.7,2003.5,9.60409]
[1742676059805,0.44882472,2003.7,2003.5,4.99109]
[1742676062995,7.51956553,2003.9,2003.5,4.99109]
[1742676063314,0.44894484,2003.8,2003.5,4.99109]
[1742676067117,5.43954484,2003.8,2003.5,4.99122]
[1742676067412,0.44894484,2003.8,2003.5,4.99122]
[1742676068698,0.44894484,2003.8,2003.5,9.98229]
[1742676069201,0.44894484,2003.8,2003.5,4.99107]
[1742676069621,0.44894484,2003.8,2003.7,4.99076]
[1742676070202,0.44894484,2003.8,2003.6,5.75845]
[1742676070401,0.44894484,2003.8,2003.6,4.99095]
[1742676070608,0.44894484,2003.8,2003.6,9.98179]
[1742676071531,0.44894484,2003.8,2003.6,4.99084]
[1742676080324,2.52917553,2003.7,2003.5,4.99124]
[1742676080726,0.44888784,2003.6,2003.5,4.99124]
[1742676081114,7.46122057,2003.8,2003.5,4.99124]
[1742676081595,0.44900797,2003.7,2003.5,4.99124]
[1742676084013,0.44900797,2003.7,2003.5,9.98234]
[1742676084434,0.44900797,2003.7,2003.5,9.98225]
[1742676084613,0.44900797,2003.7,2003.5,4.9911]
[1742676084948,0.44900797,2003.7,2003.5,9.98226]
[1742676085349,0.44900797,2003.7,2003.5,4.9911]
[1742676087845,0.44900797,2003.7,2003.4,10.41954]
[1742676088044,0.44900797,2003.7,2003.5,4.99113]
[1742676093248,0.44900797,2003.7,2003.4,9.60544]
[1742676093450,2.9781835,2003.7,2003.4,9.60544]
[1742676093957,2.52917553,2003.6,2003.4,4.614]
[1742676094147,3.28847553,2003.5,2003.2,31.37882]
[1742676094458,2.52917553,2003.3,2003.2,26.387]
[1742676094830,2.97738227,2003.3,2003.2,26.387]
[1742676096265,0.44820674,2003.3,2003.2,26.387]
[1742676097431,2.97738227,2003.3,2003.2,26.387]
[1742676102071,2.97738227,2003.3,2003.1,9.60513]
[1742676102290,0.44820674,2003.3,2003.1,9.60513]
[1742676102476,2.97738227,2003.3,2003.1,9.60513]
[1742676103138,0.44820674,2003.3,2003.1,9.60513]
[1742676103339,0.44820674,2003.3,2003.2,4.99201]
[1742676109989,0.44820674,2003.3,2003.1,9.60519]
[1742676111186,0.44820674,2003.3,2003.1,4.613]
[1742676111187,2.97738227,2003.3,2003.1,4.613]
[1742676111489,4.3493405,2003.3,2003.1,4.613]
[1742676111689,1.82016497,2003.3,2003.1,4.613]
[1742676111856,4.3493405,2003.3,2003.1,4.613]
[1742676112160,0.44820674,2003.3,2003.1,0.8329]
[1742676112367,2.97738227,2003.3,2003.0,14.5987]
[1742676112687,0.44820674,2003.3,2003.0,14.5987]
[1742676112855,2.97738227,2003.3,2003.0,14.5987]
[1742676113696,0.44820674,2003.3,2003.0,14.5987]
[1742676113877,0.44820674,2003.3,2003.1,4.99223]
[1742676114052,0.44820674,2003.3,2003.2,4.99201]
[1742676124192,0.44820674,2003.3,2003.1,5.82507]
[1742676124497,0.44820674,2003.3,2003.1,4.99217]
[1742676128603,0.44820674,2003.3,2003.0,4.614]
[1742676128604,5.44001674,2003.3,2003.0,4.614]
[1742676128772,15.3924085,2003.3,2003.0,4.614]
[1742676128969,10.4004485,2003.3,2003.0,4.614]
[1742676129171,12.86321297,2003.3,2003.0,4.614]
[1742676129479,15.3923885,2003.3,2003.0,4.614]
[1742676131399,10.4004485,2003.3,2003.0,4.614]
[1742676131603,7.87127297,2003.3,2003.0,4.614]
[1742676131806,12.86321297,2003.3,2003.0,4.614]
[1742676132015,7.87127297,2003.3,2003.0,4.614]
[1742676133210,10.4004485,2003.3,2003.0,4.614]
[1742676133908,4.99206,2003.2,2003.0,4.614]
[1742676134303,0.44746246,2003.1,2003.0,4.614]
[1742676134701,4.99206,2003.2,2003.0,4.614]
[1742676134901,0.44746246,2003.1,2003.0,4.614]
[1742676135279,9.95224176,2003.3,2003.0,4.614]
[1742676135481,0.44746246,2003.1,2003.0,4.614]
[1742676135681,8.28028553,2003.3,2003.0,4.614]
[1742676135891,0.44746246,2003.1,2003.0,4.614]
[1742676136094,9.90746608,2003.3,2003.0,4.614]
[1742676136292,0.44746246,2003.1,2003.0,4.614]
[1742676136513,9.90746608,2003.3,2003.0,4.614]
[1742676136700,0.44746246,2003.1,2003.0,4.614]
[1742676136900,9.90746608,2003.3,2003.0,4.614]
[1742676137103,0.44746246,2003.1,2003.0,4.614]
[1742676137310,9.90746608,2003.3,2003.0,4.614]
[1742676137493,0.44746246,2003.1,2003.0,4.614]
[1742676137694,9.90746608,2003.3,2003.0,4.614]
[1742676138185,0.44758265,2003.2,2003.0,4.614]
[1742676138587,0.44758265,2003.2,2003.0,9.6064]
[1742676139584,0.44758265,2003.2,2003.1,4.99226]
[1742676139789,7.99151,2003.4,2003.1,4.99226]
[1742676139991,0.44770283,2003.3,2003.1,4.99226]
[1742676140705,0.44770283,2003.3,2003.0,9.6064]
[1742676140910,0.44770283,2003.3,2003.0,14.59882]
[1742676141724,0.44770283,2003.3,2003.0,9.6064]
[1742676145428,0.44770283,2003.3,2003.0,4.614]
[1742676145630,4.99573075,2003.3,2003.0,4.614]
[1742676146031,9.98759075,2003.3,2003.0,4.614]
[1742676146244,10.52134553,2003.2,2003.0,4.614]
[1742676146601,0.44746246,2003.1,2003.0,4.614]
[1742676146797,7.99212,2003.2,2003.0,4.614]
[1742676147017,0.44746246,2003.1,2003.0,4.614]
[1742676147193,9.74530779,2003.2,2003.0,4.614]
[1742676147419,0.44746246,2003.1,2003.0,4.614]
[1742676147619,9.74530779,2003.2,2003.0,4.614]
[1742676147827,0.44746246,2003.1,2003.0,4.614]
[1742676148009,9.74530779,2003.2,2003.0,4.614]
[1742676148332,0.44723337,2003.1,2003.0,4.614]
[1742676148634,9.74530779,2003.2,2003.0,4.614]
[1742676148832,0.44723337,2003.1,2003.0,4.614]
[1742676149131,9.74530779,2003.2,2003.0,4.614]
[1742676149336,0.44723337,2003.1,2003.0,4.614]
[1742676149637,9.74530779,2003.2,2003.0,4.614]
[1742676149933,0.44723337,2003.1,2003.0,4.614]
[1742676150299,12.27448332,2003.2,2003.0,4.614]
[1742676150499,0.44723337,2003.1,2003.0,4.614]
[1742676150910,12.27448332,2003.2,2003.0,4.614]
[1742676151111,0.44723337,2003.1,2003.0,4.614]
[1742676151436,12.27448332,2003.2,2003.0,4.614]
[1742676151638,0.44723337,2003.1,2003.0,4.614]
[1742676151802,12.27448332,2003.2,2003.0,4.614]
[1742676152003,2.37574394,2003.1,2003.0,4.614]
[1742676152238,0.44723337,2003.1,2003.0,4.614]
[1742676152436,10.52129553,2003.2,2003.0,4.614]
[1742676152637,0.44723337,2003.1,2003.0,4.614]
[1742676152934,10.52129553,2003.2,2003.0,4.614]
[1742676153134,0.44723337,2003.1,2003.0,4.614]
[1742676153536,10.52129553,2003.2,2003.0,4.614]
[1742676153833,2.9764089,2003.1,2002.8,4.99286]
[1742676154033,3.28847553,2003.0,2002.7,31.38725]
[1742676154335,0.44699295,2002.9,2002.7,36.00025]
[1742676154632,2.97616848,2002.9,2002.7,31.007]
[1742676157205,7.96895848,2002.9,2002.7,31.007]
[1742676157829,2.97616848,2002.9,2002.7,31.007]
[1742676163652,2.97616848,2002.9,2002.7,26.394]
[1742676163653,2.52917553,2002.8,2002.7,26.394]
[1742676163823,7.96806323,2002.8,2002.7,26.394]
[1742676164450,7.96806323,2002.8,2002.5,9.60774]
[1742676164720,2.52917553,2002.7,2002.5,9.60774]
[1742676165036,0.44512023,2002.6,2002.5,9.60774]
[1742676165439,7.52217553,2002.8,2002.5,9.60774]
[1742676165632,2.97441601,2002.7,2002.4,6.75394667]
[1742676165841,2.52917553,2002.6,2002.4,4.614]
[1742676166050,0.44477081,2002.5,2002.4,9.60787]
[1742676166258,2.52917553,2002.7,2002.4,9.60787]
[1742676166460,2.52917553,2002.7,2002.5,4.99355]
[1742676167754,0.4447994,2002.6,2002.5,4.99355]
[1742676171265,7.52219553,2002.8,2002.5,4.99355]
[1742676171655,0.44432382,2002.7,2002.5,4.99355]
[1742676172161,2.97349935,2002.7,2002.4,10.39023]
[1742676175667,2.97349935,2002.7,2002.4,9.60793]
[1742676175869,2.52917553,2002.6,2002.4,9.60793]
[1742676176370,0.4440833,2002.5,2002.4,9.60793]
[1742676179164,0.4440833,2002.5,2002.4,4.99393]
[1742676179537,2.52917553,2002.6,2002.4,4.99393]
[1742676179770,0.4440833,2002.5,2002.4,4.99393]
[1742676184674,3.27058471,2002.5,2002.2,5.77677]
[1742676184860,2.52917553,2002.3,2002.2,9.6085]
[1742676185174,0.4435677,2002.3,2002.2,4.614]
[1742676185377,2.97274323,2002.3,2002.1,31.39462]
[1742676185675,2.97274323,2002.3,2002.1,36.00862]
[1742676187272,2.97274323,2002.3,2002.1,36.00861]
[1742676187473,2.52917553,2002.5,2002.2,4.9945]
[1742676187678,2.52917553,2002.5,2002.2,5.7815]
[1742676187874,2.52917553,2002.5,2002.3,4.99417]
[1742676188182,2.52917553,2002.5,2002.3,4.99412]
[1742676188958,2.52917553,2002.5,2002.2,5.78147]
[1742676189472,2.52917553,2002.5,2002.2,10.77586]
[1742676190080,2.52917553,2002.5,2002.3,4.99418]
[1742676190679,3.82167543,2002.5,2002.3,4.99418]
[1742676190987,3.28847553,2002.4,2002.1,36.00872]
[1742676191878,2.52917553,2002.3,2002.1,36.00872]
[1742676192449,2.52917553,2002.3,2002.1,31.39472]
[1742676192850,2.52917553,2002.3,2002.1,26.4]
[1742676193386,8.72559777,2002.2,2002.1,26.4]
[1742676193976,8.72559777,2002.2,2001.8,4.9955]
[1742676194177,2.52917553,2002.0,2001.8,4.9955]
[1742676194654,0.44155052,2001.9,2001.8,4.9955]
[1742676197095,2.52917553,2002.1,2001.8,9.99083]
[1742676197254,0.44155052,2001.9,2001.8,9.99083]
[1742676197460,2.52917553,2002.1,2001.8,9.99083]
[1742676197661,2.52917553,2002.1,2001.9,4.99514]
[1742676197861,0.44167086,2002.0,2001.8,4.99533]
[1742676198292,2.52917553,2001.9,2001.7,9.61073]
[1742676198493,2.97072605,2001.9,2001.7,9.61073]
[1742676200288,2.97072605,2001.9,2001.7,4.99573]
[1742676202096,2.97072605,2001.9,2001.6,9.61097]
[1742676202400,2.97072605,2001.9,2001.6,14.60685]
[1742676204563,2.97072605,2001.9,2001.6,9.61088]
[1742676206698,2.97072605,2001.9,2001.6,14.60677]
[1742676207013,0.44155052,2001.9,2001.7,4.99554]
[1742676207309,5.52917553,2002.1,2001.9,4.99522]
[1742676207720,3.0,2002.1,2001.9,4.99522]
[1742676207876,5.52917553,2002.1,2001.9,4.99522]
[1742676209112,5.52917553,2002.1,2001.8,4.99544]
[1742676209324,7.33259474,2002.1,2001.8,4.99544]
[1742676210014,2.52917553,2002.0,2001.8,4.99544]
[1742676210600,12.32737474,2002.1,2001.8,4.99544]
[1742676212523,0.43974459,2002.0,2001.8,4.99544]
[1742676213479,2.96892012,2002.0,2001.7,5.80192]
[1742676214823,2.96892012,2002.0,2001.7,10.79751]
[1742676214824,0.43974459,2002.0,2001.7,10.79751]
[1742676215522,2.96892012,2002.0,2001.7,10.79751]
[1742676215827,2.96892012,2002.0,2001.7,5.80179]
[1742676216583,0.43974459,2002.0,2001.7,5.80179]
[1742676217525,0.43974459,2002.0,2001.7,10.79738]
[1742676218015,0.43974459,2002.0,2001.9,4.99525]
[1742676218714,0.43974459,2002.0,2001.8,4.99531]
[1742676221228,0.43974459,2002.0,2001.7,0.8062]
[1742676221229,0.43974459,2002.0,2001.7,5.80189]
[1742676223387,2.96892012,2002.0,2001.7,5.80189]
[1742676223633,0.43974459,2002.0,2001.7,4.99569]
[1742676225533,5.43474459,2002.0,2001.7,4.99569]
[1742676225747,5.43474459,2002.0,2001.6,9.61097]
[1742676226026,9.63572313,2002.0,2001.6,9.61097]
[1742676226189,15.39022313,2002.0,2001.6,9.61097]
[1742676227096,2.52917553,2001.9,2001.6,9.61097]
[1742676227300,7.52445553,2001.9,2001.6,9.61097]
[1742676227617,7.96426527,2001.8,2001.6,4.615]
[1742676228638,7.96426527,2001.8,2001.5,31.026]
[1742676228639,2.52917553,2001.7,2001.5,31.026]
[1742676229019,0.43930901,2001.6,2001.5,31.026]
[1742676229340,9.06377736,2001.8,2001.5,31.026]
[1742676229496,0.43871258,2001.6,2001.5,36.02225]
[1742676229819,7.52470553,2001.8,2001.5,36.02225]
[1742676230023,0.43871258,2001.6,2001.5,36.02225]
[1742676230227,9.01981738,2001.8,2001.5,36.02225]
[1742676230424,0.43871258,2001.6,2001.5,36.02225]
[1742676230625,9.01981738,2001.8,2001.5,36.02225]
[1742676230795,0.43871258,2001.6,2001.5,36.02225]
[1742676231116,9.01981738,2001.8,2001.5,36.02225]
[1742676231318,0.43871258,2001.6,2001.5,31.026]
[1742676231520,9.01981738,2001.8,2001.5,31.026]
[1742676231728,0.43871258,2001.6,2001.5,31.026]
[1742676231914,9.01981738,2001.8,2001.5,31.026]
[1742676232113,0.43871258,2001.6,2001.5,31.026]
[1742676232310,9.01981738,2001.8,2001.5,31.026]
[1742676232512,0.43871258,2001.6,2001.5,31.026]
[1742676232825,0.43871258,2001.6,2001.5,36.0222]
[1742676233030,7.52470553,2001.8,2001.5,36.0222]
[1742676233324,0.43871258,2001.6,2001.5,36.0222]
[1742676233824,7.52470553,2001.8,2001.5,36.0222]
[1742676234027,0.43871258,2001.6,2001.5,36.0222]
[1742676234204,9.01981738,2001.8,2001.5,36.0222]
[1742676234408,0.43871258,2001.6,2001.5,36.0222]